[Event "Titled Tuesday Blitz June 28 Early 2022"]
[White "Xu, Yi"]
[Black "Artemenko, Oleg"]
[WhiteFideId "8605564"]
[BlackFideId "14201798"]
[WhiteElo "2471"]
[BlackElo "2287"]
[Result "0-1"]
[Round "02"]
[TimeControl "180+1"]
[Date "2022.06.28"]
[WhiteClock "0:00:52"]
[BlackClock "0:01:05"]

1. e4 {[%clk 0:03:00]}  e6 {[%clk 0:03:00]} 2. d4 {[%clk 0:03:01]}  d5 {[%clk 0:02:59]} 3. e5 {[%clk 0:03:01]}  c5 {[%clk 0:02:59]} 4. c3 {[%clk 0:03:02]}  Nc6 {[%clk 0:03:00]} 5. Nf3 {[%clk 0:03:02]}  Qb6 {[%clk 0:03:00]} 6. a3 {[%clk 0:03:02]}  f6 {[%clk 0:03:00]} 7. Bd3 {[%clk 0:02:49]}  fxe5 {[%clk 0:02:57]} 8. Nxe5 {[%clk 0:02:40]}  Nxe5 {[%clk 0:02:56]} 9. dxe5 {[%clk 0:02:40]}  Ne7 {[%clk 0:02:56]} 10. O-O {[%clk 0:02:38]}  g6 {[%clk 0:02:55]} 11. Bg5 {[%clk 0:02:35]}  Bg7 {[%clk 0:02:52]} 12. Qe2 {[%clk 0:02:24]}  Nc6 {[%clk 0:02:48]} 13. Bb5 {[%clk 0:02:14]}  O-O {[%clk 0:02:42]} 14. Bxc6 {[%clk 0:02:11]}  bxc6 {[%clk 0:02:41]} 15. b4 {[%clk 0:02:10]}  Ba6 {[%clk 0:02:38]} 16. Qg4 {[%clk 0:01:36]}  Bxf1 {[%clk 0:02:33]} 17. Qxe6+ {[%clk 0:01:36]}  Kh8 {[%clk 0:02:33]} 18. Kxf1 {[%clk 0:01:34]}  Rae8 {[%clk 0:02:28]} 19. Qh3 {[%clk 0:01:23]}  cxb4 {[%clk 0:02:26]} 20. Be3 {[%clk 0:01:22]}  Qb5+ {[%clk 0:02:24]} 21. Kg1 {[%clk 0:01:22]}  bxc3 {[%clk 0:02:20]} 22. Nxc3 {[%clk 0:01:21]}  Qd3 {[%clk 0:02:13]} 23. Na4 {[%clk 0:01:04]}  d4 {[%clk 0:01:59]} 24. Nc5 {[%clk 0:01:02]}  Qc3 {[%clk 0:01:53]} 25. Rc1 {[%clk 0:01:02]}  Qxa3 {[%clk 0:01:50]} 26. Bh6 {[%clk 0:00:59]}  Qxh3 {[%clk 0:01:47]} 27. Bxg7+ {[%clk 0:00:59]}  Kxg7 {[%clk 0:01:47]} 28. gxh3 {[%clk 0:01:00]}  Rxe5 {[%clk 0:01:43]} 29. Nd7 {[%clk 0:01:00]}  Rg5+ {[%clk 0:01:43]} 30. Kf1 {[%clk 0:00:59]}  Rd8 {[%clk 0:01:43]} 31. h4 {[%clk 0:00:59]}  Rd5 {[%clk 0:01:30]} 32. Nc5 {[%clk 0:00:59]}  Kf7 {[%clk 0:01:22]} 33. Ke1 {[%clk 0:00:58]}  d3 {[%clk 0:01:10]} 34. Kd2 {[%clk 0:00:58]}  Re5 {[%clk 0:01:10]} 35. Rc4 {[%clk 0:00:54]}  Re2+ {[%clk 0:01:09]} 36. Kd1 {[%clk 0:00:55]}  d2 {[%clk 0:01:06]} 37. Rf4+ {[%clk 0:00:52]}  Kg8 {[%clk 0:01:05]} 0-1


[Site "https://www.chess.com"]

[Event "Titled Tuesday Blitz June 28 Early 2022"]
[White "Zaksaite, Salomeja"]
[Black "Daeschler, Florian"]
[WhiteFideId "12801496"]
[BlackFideId "20678193"]
[WhiteElo "1953"]
[BlackElo "2221"]
[Result "0-1"]
[Round "02"]
[TimeControl "180+1"]
[Date "2022.06.28"]
[WhiteClock "0:00:01"]
[BlackClock "0:00:20"]

1. e4 {[%clk 0:02:57]}  c5 {[%clk 0:02:58]} 2. Nf3 {[%clk 0:02:55]}  d6 {[%clk 0:02:57]} 3. d4 {[%clk 0:02:55]}  cxd4 {[%clk 0:02:58]} 4. Nxd4 {[%clk 0:02:55]}  Nf6 {[%clk 0:02:58]} 5. Nc3 {[%clk 0:02:56]}  Nc6 {[%clk 0:02:59]} 6. Be3 {[%clk 0:02:38]}  Ng4 {[%clk 0:02:57]} 7. Bb5 {[%clk 0:02:15]}  Nxe3 {[%clk 0:02:50]} 8. Nxc6 {[%clk 0:02:15]}  Nxd1 {[%clk 0:02:50]} 9. Nxd8+ {[%clk 0:02:15]}  Kxd8 {[%clk 0:02:51]} 10. Rxd1 {[%clk 0:02:13]}  a6 {[%clk 0:02:41]} 11. Be2 {[%clk 0:02:11]}  e6 {[%clk 0:02:38]} 12. O-O {[%clk 0:02:10]}  Bd7 {[%clk 0:02:31]} 13. f4 {[%clk 0:01:40]}  Be7 {[%clk 0:02:27]} 14. Bf3 {[%clk 0:01:36]}  Rc8 {[%clk 0:02:25]} 15. Rd2 {[%clk 0:01:36]}  Kc7 {[%clk 0:02:18]} 16. Rfd1 {[%clk 0:01:35]}  Rhd8 {[%clk 0:02:18]} 17. e5 {[%clk 0:01:33]}  d5 {[%clk 0:02:13]} 18. g3 {[%clk 0:01:22]}  Kb8 {[%clk 0:01:57]} 19. Kg2 {[%clk 0:01:17]}  b5 {[%clk 0:01:44]} 20. Ne2 {[%clk 0:01:09]}  Rc4 {[%clk 0:01:39]} 21. Nd4 {[%clk 0:01:09]}  Rdc8 {[%clk 0:01:36]} 22. c3 {[%clk 0:01:08]}  Ka7 {[%clk 0:01:28]} 23. Be2 {[%clk 0:01:07]}  R4c7 {[%clk 0:01:27]} 24. Bd3 {[%clk 0:00:59]}  b4 {[%clk 0:01:26]} 25. cxb4 {[%clk 0:00:45]}  Bxb4 {[%clk 0:01:27]} 26. Re2 {[%clk 0:00:43]}  Ba4 {[%clk 0:01:12]} 27. b3 {[%clk 0:00:33]}  Bd7 {[%clk 0:01:11]} 28. h4 {[%clk 0:00:29]}  Rc1 {[%clk 0:01:07]} 29. Rxc1 {[%clk 0:00:24]}  Rxc1 {[%clk 0:01:08]} 30. Rc2 {[%clk 0:00:24]}  Rxc2+ {[%clk 0:01:03]} 31. Nxc2 {[%clk 0:00:23]}  Bc5 {[%clk 0:01:03]} 32. Bxh7 {[%clk 0:00:23]}  g6 {[%clk 0:00:57]} 33. g4 {[%clk 0:00:22]}  d4 {[%clk 0:00:57]} 34. Kf1 {[%clk 0:00:07]}  d3 {[%clk 0:00:57]} 35. Na1 {[%clk 0:00:03]}  Bb4 {[%clk 0:00:23]} 36. h5 {[%clk 0:00:02]}  Bb5 {[%clk 0:00:22]} 37. hxg6 {[%clk 0:00:01]}  d2+ {[%clk 0:00:22]} 38. Kg2 {[%clk 0:00:01]}  fxg6 {[%clk 0:00:20]} 0-1


[Site "https://www.chess.com"]

[Event "Titled Tuesday Blitz June 28 Early 2022"]
[White "Agasarov, Benik"]
[Black "Bortnyk, Olexandr"]
[WhiteFideId "13314823"]
[BlackFideId "14120828"]
[WhiteElo "2707"]
[BlackElo "2723"]
[Result "0-1"]
[Round "03"]
[TimeControl "180+1"]
[Date "2022.06.28"]
[WhiteClock "0:00:47"]
[BlackClock "0:00:21"]

1. c4 {[%clk 0:02:56]}  d6 {[%clk 0:02:58]} 2. d4 {[%clk 0:02:54]}  Nf6 {[%clk 0:02:59]} 3. Nc3 {[%clk 0:02:53]}  g6 {[%clk 0:02:59]} 4. g3 {[%clk 0:02:53]}  Bg7 {[%clk 0:03:00]} 5. Nf3 {[%clk 0:02:53]}  O-O {[%clk 0:03:01]} 6. Bg2 {[%clk 0:02:53]}  Bf5 {[%clk 0:03:01]} 7. Nh4 {[%clk 0:02:51]}  Bc8 {[%clk 0:03:01]} 8. Nf3 {[%clk 0:02:51]}  Nbd7 {[%clk 0:02:56]} 9. O-O {[%clk 0:02:51]}  c6 {[%clk 0:02:57]} 10. e4 {[%clk 0:02:51]}  e5 {[%clk 0:02:57]} 11. Re1 {[%clk 0:02:50]}  Qb6 {[%clk 0:02:52]} 12. dxe5 {[%clk 0:02:19]}  dxe5 {[%clk 0:02:19]} 13. Qe2 {[%clk 0:02:19]}  Re8 {[%clk 0:02:07]} 14. Be3 {[%clk 0:02:19]}  Qa6 {[%clk 0:02:05]} 15. h3 {[%clk 0:02:18]}  Nf8 {[%clk 0:02:05]} 16. Rad1 {[%clk 0:02:15]}  b6 {[%clk 0:01:51]} 17. b3 {[%clk 0:02:14]}  Qa5 {[%clk 0:01:46]} 18. Bd2 {[%clk 0:02:12]}  Qa3 {[%clk 0:01:43]} 19. Bc1 {[%clk 0:02:11]}  Qe7 {[%clk 0:01:43]} 20. Bb2 {[%clk 0:02:10]}  N6d7 {[%clk 0:01:37]} 21. Na4 {[%clk 0:01:56]}  Ne6 {[%clk 0:01:36]} 22. Qd2 {[%clk 0:01:54]}  c5 {[%clk 0:00:54]} 23. Nc3 {[%clk 0:01:49]}  Nd4 {[%clk 0:00:52]} 24. Nd5 {[%clk 0:01:48]}  Qd6 {[%clk 0:00:52]} 25. Nxd4 {[%clk 0:01:47]}  cxd4 {[%clk 0:00:46]} 26. Qb4 {[%clk 0:01:42]}  Qxb4 {[%clk 0:00:46]} 27. Nxb4 {[%clk 0:01:43]}  Bb7 {[%clk 0:00:46]} 28. Nd3 {[%clk 0:01:42]}  a5 {[%clk 0:00:38]} 29. a3 {[%clk 0:01:41]}  Rac8 {[%clk 0:00:38]} 30. Rc1 {[%clk 0:01:40]}  Bh6 {[%clk 0:00:38]} 31. Rc2 {[%clk 0:01:40]}  f6 {[%clk 0:00:38]} 32. b4 {[%clk 0:01:39]}  Ba6 {[%clk 0:00:37]} 33. Bc1 {[%clk 0:01:31]}  Bf8 {[%clk 0:00:33]} 34. bxa5 {[%clk 0:01:24]}  bxa5 {[%clk 0:00:34]} 35. Nb2 {[%clk 0:01:18]}  Bxa3 {[%clk 0:00:33]} 36. Bd2 {[%clk 0:01:15]}  Bb4 {[%clk 0:00:32]} 37. Ra1 {[%clk 0:01:09]}  Nc5 {[%clk 0:00:32]} 38. Bxb4 {[%clk 0:01:05]}  axb4 {[%clk 0:00:33]} 39. Ra5 {[%clk 0:01:04]}  d3 {[%clk 0:00:30]} 40. Nxd3 {[%clk 0:01:04]}  Nxd3 {[%clk 0:00:25]} 41. Rxa6 {[%clk 0:01:04]}  b3 {[%clk 0:00:26]} 42. Rc3 {[%clk 0:00:56]}  b2 {[%clk 0:00:20]} 43. Rb6 {[%clk 0:00:56]}  Rb8 {[%clk 0:00:20]} 44. Rcb3 {[%clk 0:00:56]}  Rxb6 {[%clk 0:00:20]} 45. Rxb6 {[%clk 0:00:57]}  Ra8 {[%clk 0:00:21]} 46. Bf1 {[%clk 0:00:50]}  Ra1 {[%clk 0:00:21]} 47. Rb8+ {[%clk 0:00:48]}  Kf7 {[%clk 0:00:21]} 48. Rb7+ {[%clk 0:00:48]}  Ke8 {[%clk 0:00:21]} 49. Kg2 {[%clk 0:00:47]}  Ne1+ {[%clk 0:00:21]} 0-1


[Site "https://www.chess.com"]

[Event "Titled Tuesday Blitz June 28 Early 2022"]
[White "Agibileg, Uurtsaikh"]
[Black "Hovhannisyan, Robert"]
[WhiteFideId "4901606"]
[BlackFideId "13302507"]
[WhiteElo "2205"]
[BlackElo "2570"]
[Result "0-1"]
[Round "03"]
[TimeControl "180+1"]
[Date "2022.06.28"]
[WhiteClock "0:00:07"]
[BlackClock "0:00:20"]

1. d4 {[%clk 0:03:00]}  d5 {[%clk 0:02:58]} 2. c4 {[%clk 0:03:00]}  c6 {[%clk 0:02:58]} 3. Nf3 {[%clk 0:02:59]}  Nf6 {[%clk 0:02:58]} 4. Nc3 {[%clk 0:03:00]}  e6 {[%clk 0:02:59]} 5. Bg5 {[%clk 0:02:59]}  h6 {[%clk 0:02:57]} 6. Bh4 {[%clk 0:02:58]}  dxc4 {[%clk 0:02:56]} 7. e4 {[%clk 0:02:58]}  g5 {[%clk 0:02:56]} 8. Bg3 {[%clk 0:02:58]}  b5 {[%clk 0:02:57]} 9. Be2 {[%clk 0:02:57]}  b4 {[%clk 0:02:57]} 10. Na4 {[%clk 0:02:56]}  Nxe4 {[%clk 0:02:57]} 11. Be5 {[%clk 0:02:56]}  Nf6 {[%clk 0:02:56]} 12. Bxc4 {[%clk 0:02:31]}  Nbd7 {[%clk 0:02:55]} 13. O-O {[%clk 0:02:01]}  g4 {[%clk 0:02:54]} 14. Bxf6 {[%clk 0:02:00]}  Qxf6 {[%clk 0:02:55]} 15. Ne1 {[%clk 0:01:58]}  h5 {[%clk 0:02:41]} 16. f3 {[%clk 0:01:42]}  g3 {[%clk 0:02:09]} 17. hxg3 {[%clk 0:01:43]}  h4 {[%clk 0:02:09]} 18. g4 {[%clk 0:01:38]}  Bd6 {[%clk 0:02:08]} 19. f4 {[%clk 0:01:20]}  Bxf4 {[%clk 0:01:55]} 20. Kh1 {[%clk 0:00:52]}  Qh6 {[%clk 0:00:26]} 21. Qf3 {[%clk 0:00:21]}  e5 {[%clk 0:00:27]} 22. dxe5 {[%clk 0:00:20]}  Bxe5 {[%clk 0:00:27]} 23. Qxf7+ {[%clk 0:00:14]}  Kd8 {[%clk 0:00:28]} 24. Nf3 {[%clk 0:00:14]}  Bd6 {[%clk 0:00:23]} 25. g5 {[%clk 0:00:07]}  Qf8 {[%clk 0:00:20]} 0-1


[Site "https://www.chess.com"]

[Event "Titled Tuesday Blitz June 28 Early 2022"]
[White "Ajay Krishna, S"]
[Black "Sahil, Tickoo"]
[WhiteFideId "5096430"]
[BlackFideId "5019710"]
[WhiteElo "2247"]
[BlackElo "2047"]
[Result "1-0"]
[Round "03"]
[TimeControl "180+1"]
[Date "2022.06.28"]
[WhiteClock "0:00:25"]
[BlackClock "0:00:02"]

1. d4 {[%clk 0:02:59]}  d5 {[%clk 0:02:54]} 2. c4 {[%clk 0:02:58]}  e6 {[%clk 0:02:54]} 3. Nf3 {[%clk 0:02:58]}  Nf6 {[%clk 0:02:55]} 4. g3 {[%clk 0:02:57]}  dxc4 {[%clk 0:02:47]} 5. Bg2 {[%clk 0:02:57]}  Bd7 {[%clk 0:02:43]} 6. O-O {[%clk 0:02:57]}  Bc6 {[%clk 0:02:41]} 7. a4 {[%clk 0:02:56]}  a5 {[%clk 0:02:40]} 8. Nbd2 {[%clk 0:02:54]}  Na6 {[%clk 0:02:33]} 9. Nxc4 {[%clk 0:02:54]}  Nb4 {[%clk 0:02:32]} 10. Bd2 {[%clk 0:02:32]}  Be7 {[%clk 0:02:28]} 11. Rc1 {[%clk 0:02:31]}  O-O {[%clk 0:02:27]} 12. Qe1 {[%clk 0:02:17]}  Bxa4 {[%clk 0:02:22]} 13. Nxa5 {[%clk 0:02:07]}  Nc2 {[%clk 0:02:08]} 14. Qd1 {[%clk 0:02:07]}  b6 {[%clk 0:01:51]} 15. b3 {[%clk 0:02:06]}  bxa5 {[%clk 0:01:45]} 16. Qxc2 {[%clk 0:02:06]}  Bb5 {[%clk 0:01:42]} 17. Ne5 {[%clk 0:01:52]}  Bxe2 {[%clk 0:01:33]} 18. Rfe1 {[%clk 0:01:46]}  Bb5 {[%clk 0:01:16]} 19. Bxa8 {[%clk 0:01:44]}  Qxa8 {[%clk 0:01:12]} 20. Qxc7 {[%clk 0:01:42]}  Bb4 {[%clk 0:00:53]} 21. Bxb4 {[%clk 0:01:36]}  axb4 {[%clk 0:00:52]} 22. Qc5 {[%clk 0:01:36]}  Ba6 {[%clk 0:00:43]} 23. Ra1 {[%clk 0:01:34]}  Qb7 {[%clk 0:00:40]} 24. Qc6 {[%clk 0:01:26]}  Qxc6 {[%clk 0:00:35]} 25. Nxc6 {[%clk 0:01:25]}  Bb7 {[%clk 0:00:32]} 26. Nxb4 {[%clk 0:01:23]}  Rb8 {[%clk 0:00:30]} 27. Na6 {[%clk 0:01:20]}  Bxa6 {[%clk 0:00:29]} 28. Rxa6 {[%clk 0:01:19]}  g5 {[%clk 0:00:29]} 29. Rb1 {[%clk 0:01:18]}  Nd5 {[%clk 0:00:26]} 30. Rc6 {[%clk 0:00:59]}  Rb4 {[%clk 0:00:24]} 31. Rc4 {[%clk 0:00:58]}  Rb7 {[%clk 0:00:22]} 32. b4 {[%clk 0:00:58]}  g4 {[%clk 0:00:17]} 33. b5 {[%clk 0:00:56]}  h5 {[%clk 0:00:14]} 34. Rc5 {[%clk 0:00:42]}  Kg7 {[%clk 0:00:08]} 35. b6 {[%clk 0:00:36]}  Rxb6 {[%clk 0:00:07]} 36. Rxb6 {[%clk 0:00:35]}  Nxb6 {[%clk 0:00:07]} 37. Rxh5 {[%clk 0:00:35]}  f5 {[%clk 0:00:06]} 38. h3 {[%clk 0:00:27]}  gxh3 {[%clk 0:00:05]} 39. Rxh3 {[%clk 0:00:27]}  Nd5 {[%clk 0:00:06]} 40. Rh4 {[%clk 0:00:25]}  Kf6 {[%clk 0:00:02]} 41. Kg2 {[%clk 0:00:25]} 1-0


[Site "https://www.chess.com"]

[Event "Titled Tuesday Blitz June 28 Early 2022"]
[White "Antonio, Jorge Carlos"]
[Black "Aldokhin, Ivan"]
[WhiteFideId "113190"]
[BlackFideId "24115720"]
[WhiteElo "2247"]
[BlackElo "2231"]
[Result "0-1"]
[Round "03"]
[TimeControl "180+1"]
[Date "2022.06.28"]
[WhiteClock "0:00:42"]
[BlackClock "0:00:20"]

1. d4 {[%clk 0:03:00]}  Nf6 {[%clk 0:02:59]} 2. Nf3 {[%clk 0:03:00]}  g6 {[%clk 0:03:00]} 3. c4 {[%clk 0:02:59]}  Bg7 {[%clk 0:03:01]} 4. Nc3 {[%clk 0:02:59]}  d6 {[%clk 0:03:01]} 5. e4 {[%clk 0:02:58]}  O-O {[%clk 0:03:02]} 6. Be2 {[%clk 0:02:59]}  Nc6 {[%clk 0:03:02]} 7. O-O {[%clk 0:02:57]}  Re8 {[%clk 0:03:02]} 8. d5 {[%clk 0:02:50]}  Nb4 {[%clk 0:03:02]} 9. a3 {[%clk 0:02:48]}  Na6 {[%clk 0:03:01]} 10. b4 {[%clk 0:02:48]}  e6 {[%clk 0:03:01]} 11. Bg5 {[%clk 0:02:41]}  h6 {[%clk 0:03:01]} 12. Bxf6 {[%clk 0:02:39]}  Qxf6 {[%clk 0:02:46]} 13. Rc1 {[%clk 0:02:39]}  Bd7 {[%clk 0:02:29]} 14. c5 {[%clk 0:02:32]}  dxc5 {[%clk 0:02:04]} 15. Bxa6 {[%clk 0:02:29]}  bxa6 {[%clk 0:02:03]} 16. bxc5 {[%clk 0:02:29]}  exd5 {[%clk 0:02:02]} 17. exd5 {[%clk 0:02:23]}  Rad8 {[%clk 0:01:43]} 18. Qd3 {[%clk 0:02:14]}  Bf5 {[%clk 0:01:41]} 19. Qc4 {[%clk 0:02:06]}  Bc8 {[%clk 0:01:00]} 20. h3 {[%clk 0:02:03]}  Bxh3 {[%clk 0:00:57]} 21. Rfd1 {[%clk 0:01:37]}  h5 {[%clk 0:00:43]} 22. Ne4 {[%clk 0:01:34]}  Qf4 {[%clk 0:00:39]} 23. Neg5 {[%clk 0:01:22]}  Qxc4 {[%clk 0:00:33]} 24. Rxc4 {[%clk 0:01:21]}  Bf5 {[%clk 0:00:21]} 25. Ra4 {[%clk 0:01:03]}  f6 {[%clk 0:00:20]} 26. Nh3 {[%clk 0:00:56]}  Bc2 {[%clk 0:00:20]} 27. Rad4 {[%clk 0:00:48]}  Bxd1 {[%clk 0:00:20]} 28. Rxd1 {[%clk 0:00:48]}  g5 {[%clk 0:00:21]} 29. Nd4 {[%clk 0:00:42]}  Rxd5 {[%clk 0:00:20]} 0-1


[Site "https://www.chess.com"]

[Event "Titled Tuesday Blitz June 28 Early 2022"]
[White "Arias, Juan Cruz"]
[Black "Valle Maytin, Luis Enrique"]
[WhiteFideId "118540"]
[BlackFideId "3503666"]
[WhiteElo "2091"]
[BlackElo "2320"]
[Result "1-0"]
[Round "03"]
[TimeControl "180+1"]
[Date "2022.06.28"]
[WhiteClock "0:01:22"]
[BlackClock "0:01:25"]

1. d4 {[%clk 0:03:00]}  Nf6 {[%clk 0:02:59]} 2. Nf3 {[%clk 0:03:01]}  e6 {[%clk 0:02:59]} 3. e3 {[%clk 0:03:01]}  c5 {[%clk 0:03:00]} 4. Bd3 {[%clk 0:03:01]}  Nc6 {[%clk 0:03:00]} 5. O-O {[%clk 0:03:01]}  cxd4 {[%clk 0:03:00]} 6. exd4 {[%clk 0:03:00]}  d5 {[%clk 0:03:01]} 7. Bf4 {[%clk 0:02:57]}  Be7 {[%clk 0:02:58]} 8. c3 {[%clk 0:02:57]}  O-O {[%clk 0:02:45]} 9. Nbd2 {[%clk 0:02:57]}  a6 {[%clk 0:02:44]} 10. Qe2 {[%clk 0:02:47]}  b5 {[%clk 0:02:41]} 11. Ne5 {[%clk 0:02:45]}  Nxe5 {[%clk 0:02:37]} 12. dxe5 {[%clk 0:02:46]}  Nd7 {[%clk 0:02:37]} 13. Nf3 {[%clk 0:02:38]}  g6 {[%clk 0:02:25]} 14. Nd4 {[%clk 0:02:35]}  Bg5 {[%clk 0:02:22]} 15. Nc6 {[%clk 0:02:22]}  Qb6 {[%clk 0:02:20]} 16. Bxg5 {[%clk 0:02:21]}  Qxc6 {[%clk 0:02:19]} 17. Rae1 {[%clk 0:02:07]}  Bb7 {[%clk 0:02:17]} 18. Qg4 {[%clk 0:02:06]}  Rfe8 {[%clk 0:02:16]} 19. Qh4 {[%clk 0:01:47]}  Qc5 {[%clk 0:02:03]} 20. Re3 {[%clk 0:01:37]}  Qc6 {[%clk 0:01:48]} 21. Qh6 {[%clk 0:01:27]}  d4 {[%clk 0:01:41]} 22. Be4 {[%clk 0:01:27]}  Qc5 {[%clk 0:01:28]} 23. cxd4 {[%clk 0:01:25]}  Qf8 {[%clk 0:01:28]} 24. Bxb7 {[%clk 0:01:22]}  Qxh6 {[%clk 0:01:25]} 1-0


[Site "https://www.chess.com"]

[Event "Titled Tuesday Blitz June 28 Early 2022"]
[White "Atabayev, Saparmyrat"]
[Black "Fedoseev, Vladimir"]
[WhiteFideId "14000571"]
[BlackFideId "24130737"]
[WhiteElo "2752"]
[BlackElo "3043"]
[Result "0-1"]
[Round "03"]
[TimeControl "180+1"]
[Date "2022.06.28"]
[WhiteClock "0:00:09"]
[BlackClock "0:00:47"]

1. d4 {[%clk 0:03:00]}  Nf6 {[%clk 0:02:59]} 2. Nf3 {[%clk 0:03:00]}  e6 {[%clk 0:02:59]} 3. Bf4 {[%clk 0:03:00]}  b6 {[%clk 0:02:56]} 4. e3 {[%clk 0:03:00]}  Bb7 {[%clk 0:02:57]} 5. Be2 {[%clk 0:03:00]}  Be7 {[%clk 0:02:56]} 6. h3 {[%clk 0:03:00]}  O-O {[%clk 0:02:56]} 7. O-O {[%clk 0:03:00]}  c5 {[%clk 0:02:55]} 8. Nbd2 {[%clk 0:02:59]}  d6 {[%clk 0:02:54]} 9. c4 {[%clk 0:02:59]}  cxd4 {[%clk 0:02:52]} 10. exd4 {[%clk 0:02:57]}  Nbd7 {[%clk 0:02:49]} 11. Rc1 {[%clk 0:02:48]}  Re8 {[%clk 0:02:48]} 12. Re1 {[%clk 0:02:47]}  Bf8 {[%clk 0:02:33]} 13. Bf1 {[%clk 0:02:42]}  g6 {[%clk 0:02:31]} 14. Qb3 {[%clk 0:02:32]}  Qc7 {[%clk 0:02:31]} 15. c5 {[%clk 0:02:25]}  bxc5 {[%clk 0:02:20]} 16. dxc5 {[%clk 0:02:26]}  Bd5 {[%clk 0:02:12]} 17. Qc3 {[%clk 0:02:16]}  Qxc5 {[%clk 0:02:11]} 18. Qd3 {[%clk 0:01:58]}  Qb4 {[%clk 0:02:07]} 19. Nc4 {[%clk 0:01:46]}  Nc5 {[%clk 0:02:05]} 20. Qd2 {[%clk 0:01:43]}  Qxd2 {[%clk 0:02:04]} 21. Nfxd2 {[%clk 0:01:44]}  e5 {[%clk 0:01:55]} 22. Bg5 {[%clk 0:01:41]}  Nfd7 {[%clk 0:01:52]} 23. Red1 {[%clk 0:01:40]}  Be6 {[%clk 0:01:51]} 24. b4 {[%clk 0:01:35]}  Na4 {[%clk 0:01:45]} 25. Ne3 {[%clk 0:01:16]}  d5 {[%clk 0:01:36]} 26. Bb5 {[%clk 0:01:15]}  Nab6 {[%clk 0:01:36]} 27. a3 {[%clk 0:01:07]}  f6 {[%clk 0:01:34]} 28. Bh4 {[%clk 0:01:06]}  Rec8 {[%clk 0:01:27]} 29. Nf3 {[%clk 0:00:57]}  d4 {[%clk 0:01:24]} 30. Ng4 {[%clk 0:00:48]}  g5 {[%clk 0:01:19]} 31. Bxg5 {[%clk 0:00:38]}  Bxg4 {[%clk 0:01:16]} 32. hxg4 {[%clk 0:00:38]}  fxg5 {[%clk 0:01:16]} 33. Rxc8 {[%clk 0:00:37]}  Rxc8 {[%clk 0:01:14]} 34. Nxg5 {[%clk 0:00:38]}  Nf6 {[%clk 0:01:14]} 35. f3 {[%clk 0:00:35]}  Nbd5 {[%clk 0:01:12]} 36. Bd3 {[%clk 0:00:32]}  Bh6 {[%clk 0:01:08]} 37. Bf5 {[%clk 0:00:30]}  Rc3 {[%clk 0:01:04]} 38. Ne6 {[%clk 0:00:30]}  Be3+ {[%clk 0:01:03]} 39. Kh2 {[%clk 0:00:30]}  Rxa3 {[%clk 0:01:01]} 40. g5 {[%clk 0:00:30]}  Nh5 {[%clk 0:00:59]} 41. Nc5 {[%clk 0:00:25]}  Nc3 {[%clk 0:00:57]} 42. Re1 {[%clk 0:00:22]}  Bxg5 {[%clk 0:00:56]} 43. Kh3 {[%clk 0:00:22]}  Nf4+ {[%clk 0:00:54]} 44. Kg4 {[%clk 0:00:22]}  Bf6 {[%clk 0:00:54]} 45. Nd7 {[%clk 0:00:21]}  h5+ {[%clk 0:00:53]} 46. Kg3 {[%clk 0:00:19]}  Bh4+ {[%clk 0:00:51]} 47. Kxh4 {[%clk 0:00:17]}  Nxg2+ {[%clk 0:00:52]} 48. Kg5 {[%clk 0:00:18]}  Nxe1 {[%clk 0:00:53]} 49. Be6+ {[%clk 0:00:09]}  Kg7 {[%clk 0:00:52]} 50. Nf6 {[%clk 0:00:10]}  Nxf3+ {[%clk 0:00:52]} 51. Kf5 {[%clk 0:00:10]}  Ne2 {[%clk 0:00:49]} 52. Nxh5+ {[%clk 0:00:09]}  Kh6 {[%clk 0:00:49]} 53. Nf6 {[%clk 0:00:09]}  Ng3+ {[%clk 0:00:47]} 0-1


[Site "https://www.chess.com"]

[Event "Titled Tuesday Blitz June 28 Early 2022"]
[White "Baches Garcia, Guillermo"]
[Black "Domingo Nunez, Ruben"]
[WhiteFideId "2209764"]
[BlackFideId "22245570"]
[WhiteElo "2463"]
[BlackElo "2376"]
[Result "1-0"]
[Round "03"]
[TimeControl "180+1"]
[Date "2022.06.28"]
[WhiteClock "0:00:10"]
[BlackClock "0:00:07"]

1. e4 {[%clk 0:03:00]}  Nc6 {[%clk 0:02:58]} 2. Nf3 {[%clk 0:03:00]}  d5 {[%clk 0:02:59]} 3. exd5 {[%clk 0:03:00]}  Qxd5 {[%clk 0:03:00]} 4. Nc3 {[%clk 0:02:56]}  Qa5 {[%clk 0:03:00]} 5. Bb5 {[%clk 0:02:55]}  Bd7 {[%clk 0:03:00]} 6. O-O {[%clk 0:02:50]}  O-O-O {[%clk 0:03:00]} 7. Qe2 {[%clk 0:02:45]}  a6 {[%clk 0:03:00]} 8. Bc4 {[%clk 0:02:41]}  Qh5 {[%clk 0:02:54]} 9. h3 {[%clk 0:02:08]}  Nf6 {[%clk 0:02:40]} 10. Re1 {[%clk 0:02:04]}  g5 {[%clk 0:02:12]} 11. Ne5 {[%clk 0:01:52]}  Nxe5 {[%clk 0:02:02]} 12. Qxh5 {[%clk 0:01:46]}  Nxh5 {[%clk 0:02:03]} 13. Rxe5 {[%clk 0:01:46]}  f6 {[%clk 0:02:03]} 14. Re1 {[%clk 0:01:42]}  e5 {[%clk 0:01:44]} 15. d3 {[%clk 0:01:42]}  Kb8 {[%clk 0:01:43]} 16. Ne4 {[%clk 0:01:36]}  Be7 {[%clk 0:01:42]} 17. Be3 {[%clk 0:01:34]}  Bc6 {[%clk 0:01:35]} 18. g3 {[%clk 0:01:22]}  h6 {[%clk 0:01:13]} 19. Bc5 {[%clk 0:01:09]}  Rh7 {[%clk 0:01:10]} 20. b4 {[%clk 0:01:03]}  Bxe4 {[%clk 0:00:46]} 21. Rxe4 {[%clk 0:00:56]}  b5 {[%clk 0:00:40]} 22. Be6 {[%clk 0:00:45]}  Bxc5 {[%clk 0:00:38]} 23. bxc5 {[%clk 0:00:46]}  Re7 {[%clk 0:00:39]} 24. Bg4 {[%clk 0:00:39]}  Ng7 {[%clk 0:00:39]} 25. Bf3 {[%clk 0:00:39]}  Ne6 {[%clk 0:00:34]} 26. a4 {[%clk 0:00:34]}  Nxc5 {[%clk 0:00:23]} 27. axb5 {[%clk 0:00:35]}  Nxe4 {[%clk 0:00:19]} 28. Bxe4 {[%clk 0:00:35]}  Rd6 {[%clk 0:00:19]} 29. c4 {[%clk 0:00:27]}  Rb6 {[%clk 0:00:12]} 30. g4 {[%clk 0:00:25]}  Ka7 {[%clk 0:00:09]} 31. Bc6 {[%clk 0:00:23]}  Re6 {[%clk 0:00:08]} 32. Bd5 {[%clk 0:00:22]}  Red6 {[%clk 0:00:09]} 33. Be4 {[%clk 0:00:21]}  Rd4 {[%clk 0:00:09]} 34. Kf1 {[%clk 0:00:20]}  Kb8 {[%clk 0:00:07]} 35. Ke2 {[%clk 0:00:18]}  c6 {[%clk 0:00:05]} 36. Bxc6 {[%clk 0:00:17]}  axb5 {[%clk 0:00:05]} 37. Bxb5 {[%clk 0:00:16]}  Kb7 {[%clk 0:00:04]} 38. Be8 {[%clk 0:00:13]}  Rd8 {[%clk 0:00:04]} 39. Bg6 {[%clk 0:00:13]}  Rb2+ {[%clk 0:00:03]} 40. Ke3 {[%clk 0:00:13]}  Rb8 {[%clk 0:00:03]} 41. Be4+ {[%clk 0:00:13]}  Kc7 {[%clk 0:00:04]} 42. Ra6 {[%clk 0:00:13]}  R8b6 {[%clk 0:00:04]} 43. Ra7+ {[%clk 0:00:14]}  Kd6 {[%clk 0:00:04]} 44. Rh7 {[%clk 0:00:14]}  Ra2 {[%clk 0:00:04]} 45. Rxh6 {[%clk 0:00:15]}  Rbb2 {[%clk 0:00:05]} 46. Rxf6+ {[%clk 0:00:15]}  Ke7 {[%clk 0:00:06]} 47. Rg6 {[%clk 0:00:12]}  Re2+ {[%clk 0:00:06]} 48. Kf3 {[%clk 0:00:12]}  Rxf2+ {[%clk 0:00:07]} 49. Kg3 {[%clk 0:00:13]}  Rf1 {[%clk 0:00:05]} 50. Rxg5 {[%clk 0:00:12]}  Rg1+ {[%clk 0:00:06]} 51. Kh4 {[%clk 0:00:13]}  Ke6 {[%clk 0:00:06]} 52. Rg6+ {[%clk 0:00:13]}  Kf7 {[%clk 0:00:07]} 53. Rc6 {[%clk 0:00:12]}  Ra7 {[%clk 0:00:07]} 54. Rc5 {[%clk 0:00:12]}  Ke6 {[%clk 0:00:07]} 55. Rc6+ {[%clk 0:00:12]}  Kd7 {[%clk 0:00:07]} 56. Rh6 {[%clk 0:00:12]}  Ra2 {[%clk 0:00:06]} 57. c5 {[%clk 0:00:11]}  Rh2 {[%clk 0:00:05]} 58. c6+ {[%clk 0:00:10]}  Kc7 {[%clk 0:00:05]} 59. Rh7+ {[%clk 0:00:10]}  Kc8 {[%clk 0:00:06]} 60. Bf5+ {[%clk 0:00:09]}  Kd8 {[%clk 0:00:06]} 61. c7+ {[%clk 0:00:10]}  Ke8 {[%clk 0:00:07]} 62. c8=Q# {[%clk 0:00:10]} 1-0


[Site "https://www.chess.com"]